[Event "Titled Tuesday Blitz May 23 Early 2023"]
[White "Fridman, Daniel"]
[Black "Vlassov, Nikolai"]
[WhiteFideId "11600454"]
[BlackFideId "4103360"]
[WhiteElo "2525"]
[BlackElo "2324"]
[Result "1-0"]
[Round "03"]
[TimeControl "180+2"]
[Date "2023.05.23"]
[WhiteClock "0:00:46"]
[BlackClock "0:00:00"]

1. d4 {[%clk 0:02:52]}  Nf6 {[%clk 0:02:58]} 2. Nf3 {[%clk 0:02:53]}  e6 {[%clk 0:02:58]} 3. c4 {[%clk 0:02:53]}  Nc6 {[%clk 0:02:58]} 4. g3 {[%clk 0:02:50]}  Bb4+ {[%clk 0:02:58]} 5. Bd2 {[%clk 0:02:48]}  a5 {[%clk 0:02:57]} 6. Bg2 {[%clk 0:02:47]}  d6 {[%clk 0:02:57]} 7. O-O {[%clk 0:02:46]}  e5 {[%clk 0:02:55]} 8. Bg5 {[%clk 0:02:35]}  exd4 {[%clk 0:02:53]} 9. Nxd4 {[%clk 0:02:33]}  Ne5 {[%clk 0:02:53]} 10. a3 {[%clk 0:02:27]}  Bc5 {[%clk 0:02:53]} 11. Nb3 {[%clk 0:02:27]}  Bb6 {[%clk 0:02:40]} 12. c5 {[%clk 0:02:22]}  dxc5 {[%clk 0:02:38]} 13. Qxd8+ {[%clk 0:02:22]}  Kxd8 {[%clk 0:02:38]} 14. Nc3 {[%clk 0:02:22]}  Nd7 {[%clk 0:02:26]} 15. Na4 {[%clk 0:02:09]}  Ke8 {[%clk 0:02:05]} 16. Rac1 {[%clk 0:02:05]}  h6 {[%clk 0:02:02]} 17. Bxf6 {[%clk 0:01:45]}  Nxf6 {[%clk 0:02:01]} 18. Nbxc5 {[%clk 0:01:45]}  Bxc5 {[%clk 0:02:00]} 19. Rxc5 {[%clk 0:01:40]}  c6 {[%clk 0:01:57]} 20. Nb6 {[%clk 0:01:40]}  Rb8 {[%clk 0:01:56]} 21. Rxa5 {[%clk 0:01:37]}  Be6 {[%clk 0:01:49]} 22. Rd1 {[%clk 0:01:31]}  Ke7 {[%clk 0:01:46]} 23. Rc5 {[%clk 0:01:27]}  Rhd8 {[%clk 0:01:44]} 24. Rcc1 {[%clk 0:01:27]}  Bb3 {[%clk 0:01:41]} 25. Rd3 {[%clk 0:01:17]}  Rxd3 {[%clk 0:01:34]} 26. exd3 {[%clk 0:01:18]}  Kd6 {[%clk 0:01:31]} 27. Nc4+ {[%clk 0:01:16]}  Kc7 {[%clk 0:01:20]} 28. Rc3 {[%clk 0:01:14]}  Ba2 {[%clk 0:01:11]} 29. Kf1 {[%clk 0:01:11]}  Re8 {[%clk 0:01:08]} 30. Bf3 {[%clk 0:01:11]}  Re6 {[%clk 0:00:59]} 31. b3 {[%clk 0:01:06]}  Kd7 {[%clk 0:00:37]} 32. Nd2 {[%clk 0:01:05]}  Rd6 {[%clk 0:00:23]} 33. Be2 {[%clk 0:01:03]}  b5 {[%clk 0:00:08]} 34. Rc2 {[%clk 0:01:03]}  Bxb3 {[%clk 0:00:08]} 35. Nxb3 {[%clk 0:01:03]}  Nd5 {[%clk 0:00:09]} 36. Bf3 {[%clk 0:00:55]}  Nb6 {[%clk 0:00:08]} 37. Ke2 {[%clk 0:00:49]}  Na4 {[%clk 0:00:05]} 38. Nc5+ {[%clk 0:00:48]}  Nxc5 {[%clk 0:00:05]} 39. Rxc5 {[%clk 0:00:49]}  Kc7 {[%clk 0:00:04]} 40. d4 {[%clk 0:00:48]}  Kb6 {[%clk 0:00:04]} 41. Kd3 {[%clk 0:00:47]}  Rf6 {[%clk 0:00:02]} 42. Ke3 {[%clk 0:00:46]}  Re6+ {[%clk 0:00:03]} 43. Be4 {[%clk 0:00:45]}  g6 {[%clk 0:00:02]} 44. g4 {[%clk 0:00:45]}  h5 {[%clk 0:00:01]} 45. h3 {[%clk 0:00:45]}  hxg4 {[%clk 0:00:00]} 46. hxg4 {[%clk 0:00:46]} 1-0


[Site "https://www.chess.com"]

[Event "Titled Tuesday Blitz May 23 Early 2023"]
[White "koncheto"]
[Black "Babazada, Khazar"]
[BlackFideId "13413554"]
[WhiteElo "2632"]
[BlackElo "2351"]
[Result "0-1"]
[Round "03"]
[TimeControl "180+2"]
[Date "2023.05.23"]
[WhiteClock "0:00:00"]
[BlackClock "0:00:12"]

1. e4 {[%clk 0:03:00]}  c5 {[%clk 0:02:54]} 2. Nf3 {[%clk 0:03:01]}  e6 {[%clk 0:02:54]} 3. d4 {[%clk 0:03:01]}  cxd4 {[%clk 0:02:55]} 4. Nxd4 {[%clk 0:03:02]}  Nf6 {[%clk 0:02:52]} 5. Nc3 {[%clk 0:03:01]}  Nc6 {[%clk 0:02:52]} 6. a3 {[%clk 0:03:00]}  Qc7 {[%clk 0:02:37]} 7. Be2 {[%clk 0:02:52]}  a6 {[%clk 0:02:35]} 8. O-O {[%clk 0:02:50]}  h5 {[%clk 0:02:35]} 9. Nxc6 {[%clk 0:02:23]}  bxc6 {[%clk 0:02:31]} 10. h3 {[%clk 0:02:16]}  Bc5 {[%clk 0:02:28]} 11. Bg5 {[%clk 0:02:10]}  d6 {[%clk 0:01:47]} 12. Qd3 {[%clk 0:02:05]}  e5 {[%clk 0:01:43]} 13. Rad1 {[%clk 0:01:51]}  Be6 {[%clk 0:01:43]} 14. Be3 {[%clk 0:01:45]}  Bxe3 {[%clk 0:01:39]} 15. Qxe3 {[%clk 0:01:43]}  Nd7 {[%clk 0:01:32]} 16. Qg3 {[%clk 0:01:29]}  g6 {[%clk 0:01:27]} 17. f4 {[%clk 0:01:24]}  exf4 {[%clk 0:01:27]} 18. Qxf4 {[%clk 0:01:20]}  Ne5 {[%clk 0:01:27]} 19. Bd3 {[%clk 0:01:21]}  Qb6+ {[%clk 0:01:20]} 20. Kh1 {[%clk 0:01:21]}  Qxb2 {[%clk 0:01:18]} 21. Ne2 {[%clk 0:01:21]}  O-O {[%clk 0:01:04]} 22. Rb1 {[%clk 0:01:15]}  Qxa3 {[%clk 0:01:03]} 23. Nd4 {[%clk 0:01:13]}  Qc5 {[%clk 0:01:03]} 24. Nf3 {[%clk 0:01:08]}  Nxf3 {[%clk 0:01:01]} 25. Rxf3 {[%clk 0:01:08]}  a5 {[%clk 0:01:00]} 26. Rbf1 {[%clk 0:00:53]}  Qe5 {[%clk 0:01:01]} 27. Qh6 {[%clk 0:00:51]}  Qg7 {[%clk 0:01:01]} 28. Qf4 {[%clk 0:00:50]}  a4 {[%clk 0:01:01]} 29. Qxd6 {[%clk 0:00:48]}  a3 {[%clk 0:01:02]} 30. e5 {[%clk 0:00:41]}  a2 {[%clk 0:01:02]} 31. Ra1 {[%clk 0:00:41]}  Rfd8 {[%clk 0:01:01]} 32. Qc5 {[%clk 0:00:28]}  Bd5 {[%clk 0:00:56]} 33. Rf6 {[%clk 0:00:25]}  Qh6 {[%clk 0:00:50]} 34. e6 {[%clk 0:00:19]}  Bxe6 {[%clk 0:00:44]} 35. Bxg6 {[%clk 0:00:18]}  Qg7 {[%clk 0:00:18]} 36. Qg5 {[%clk 0:00:03]}  Rd5 {[%clk 0:00:16]} 37. Qf4 {[%clk 0:00:02]}  fxg6 {[%clk 0:00:12]} 38. Rf1 {[%clk 0:00:00]}  Rf5 {[%clk 0:00:12]} 0-1


[Site "https://www.chess.com"]

[Event "Titled Tuesday Blitz May 23 Early 2023"]
[White "Stribuk, Artiom"]
[Black "Isajevsky, Anton"]
[WhiteFideId "13515659"]
[BlackFideId "4142500"]
[WhiteElo "2303"]
[BlackElo "2510"]
[Result "1-0"]
[Round "03"]
[TimeControl "180+2"]
[Date "2023.05.23"]
[WhiteClock "0:00:08"]
[BlackClock "0:00:00"]

1. d4 {[%clk 0:03:00]}  d5 {[%clk 0:02:58]} 2. c4 {[%clk 0:03:00]}  e6 {[%clk 0:02:58]} 3. Nf3 {[%clk 0:02:59]}  Nf6 {[%clk 0:02:58]} 4. g3 {[%clk 0:02:59]}  Bb4+ {[%clk 0:02:55]} 5. Nbd2 {[%clk 0:02:55]}  O-O {[%clk 0:02:54]} 6. Bg2 {[%clk 0:02:55]}  a5 {[%clk 0:02:53]} 7. O-O {[%clk 0:02:50]}  a4 {[%clk 0:02:53]} 8. Nb1 {[%clk 0:02:32]}  Nc6 {[%clk 0:02:35]} 9. a3 {[%clk 0:02:30]}  Be7 {[%clk 0:02:34]} 10. Nc3 {[%clk 0:02:29]}  dxc4 {[%clk 0:02:22]} 11. Nxa4 {[%clk 0:02:06]}  Na5 {[%clk 0:02:05]} 12. Nc3 {[%clk 0:01:55]}  Nb3 {[%clk 0:01:55]} 13. Rb1 {[%clk 0:01:55]}  c5 {[%clk 0:01:12]} 14. dxc5 {[%clk 0:01:45]}  Qa5 {[%clk 0:01:11]} 15. Nd2 {[%clk 0:01:11]}  Nxd2 {[%clk 0:00:49]} 16. Bxd2 {[%clk 0:01:12]}  Qxc5 {[%clk 0:00:47]} 17. Be3 {[%clk 0:01:03]}  Qh5 {[%clk 0:00:42]} 18. Qd4 {[%clk 0:00:35]}  e5 {[%clk 0:00:33]} 19. Qxc4 {[%clk 0:00:25]}  Ng4 {[%clk 0:00:30]} 20. h4 {[%clk 0:00:24]}  Nxe3 {[%clk 0:00:29]} 21. fxe3 {[%clk 0:00:25]}  Be6 {[%clk 0:00:15]} 22. Qe4 {[%clk 0:00:25]}  Rab8 {[%clk 0:00:08]} 23. Rbd1 {[%clk 0:00:23]}  Bc5 {[%clk 0:00:04]} 24. b4 {[%clk 0:00:22]}  Bb6 {[%clk 0:00:03]} 25. Na4 {[%clk 0:00:18]}  Ba7 {[%clk 0:00:03]} 26. Bf3 {[%clk 0:00:18]}  Qh6 {[%clk 0:00:02]} 27. Nc5 {[%clk 0:00:19]}  Bxc5 {[%clk 0:00:02]} 28. bxc5 {[%clk 0:00:20]}  f6 {[%clk 0:00:02]} 29. Rd6 {[%clk 0:00:20]}  Bf7 {[%clk 0:00:02]} 30. Rfd1 {[%clk 0:00:20]}  Rfc8 {[%clk 0:00:02]} 31. Rc1 {[%clk 0:00:09]}  Bg6 {[%clk 0:00:01]} 32. Qd5+ {[%clk 0:00:10]}  Bf7 {[%clk 0:00:01]} 33. Qd3 {[%clk 0:00:10]}  Bg6 {[%clk 0:00:01]} 34. Qb3+ {[%clk 0:00:09]}  Bf7 {[%clk 0:00:01]} 35. Qc3 {[%clk 0:00:10]}  Qg6 {[%clk 0:00:01]} 36. Kf2 {[%clk 0:00:10]}  Qf5 {[%clk 0:00:00]} 37. Qd3 {[%clk 0:00:08]} 1-0


[Site "https://www.chess.com"]

[Event "Titled Tuesday Blitz May 23 Early 2023"]
[White "Remizov, Yaroslav"]
[Black "Omelja, Artem"]
[WhiteFideId "34134015"]
[BlackFideId "14119846"]
[WhiteElo "2400"]
[BlackElo "2404"]
[Result "1-0"]
[Round "03"]
[TimeControl "180+2"]
[Date "2023.05.23"]
[WhiteClock "0:01:24"]
[BlackClock "0:01:28"]

1. Nc3 {[%clk 0:03:00]}  d5 {[%clk 0:02:57]} 2. e4 {[%clk 0:03:00]}  Nf6 {[%clk 0:02:55]} 3. e5 {[%clk 0:02:59]}  d4 {[%clk 0:02:55]} 4. exf6 {[%clk 0:02:59]}  dxc3 {[%clk 0:02:55]} 5. fxg7 {[%clk 0:03:00]}  cxd2+ {[%clk 0:02:55]} 6. Qxd2 {[%clk 0:03:00]}  Qxd2+ {[%clk 0:02:55]} 7. Bxd2 {[%clk 0:03:01]}  Bxg7 {[%clk 0:02:56]} 8. O-O-O {[%clk 0:03:02]}  O-O {[%clk 0:02:54]} 9. Ne2 {[%clk 0:03:00]}  Nc6 {[%clk 0:02:53]} 10. Ng3 {[%clk 0:02:55]}  Be6 {[%clk 0:02:27]} 11. a3 {[%clk 0:02:30]}  a6 {[%clk 0:02:26]} 12. Bd3 {[%clk 0:02:25]}  Ne5 {[%clk 0:02:19]} 13. Be2 {[%clk 0:02:25]}  Nc4 {[%clk 0:02:16]} 14. Bxc4 {[%clk 0:02:23]}  Bxc4 {[%clk 0:02:17]} 15. Nf5 {[%clk 0:02:22]}  Bf6 {[%clk 0:02:15]} 16. Bc3 {[%clk 0:01:45]}  Bg5+ {[%clk 0:02:07]} 17. f4 {[%clk 0:01:25]}  Bxf4+ {[%clk 0:01:58]} 18. Kb1 {[%clk 0:01:25]}  Rfe8 {[%clk 0:01:28]} 19. Rd4 {[%clk 0:01:24]} 1-0


[Site "https://www.chess.com"]

[Event "Titled Tuesday Blitz May 23 Early 2023"]
[White "Talibov, Shiroghlan"]
[Black "Ibadov, Dashgyn"]
[WhiteFideId "13429078"]
[BlackFideId "24107514"]
[WhiteElo "2188"]
[BlackElo "2208"]
[Result "1-0"]
[Round "03"]
[TimeControl "180+2"]
[Date "2023.05.23"]
[WhiteClock "0:00:54"]
[BlackClock "0:00:17"]

1. Nf3 {[%clk 0:03:00]}  d5 {[%clk 0:02:59]} 2. a3 {[%clk 0:02:57]}  Nf6 {[%clk 0:02:58]} 3. d4 {[%clk 0:02:55]}  Bf5 {[%clk 0:02:53]} 4. e3 {[%clk 0:02:55]}  e6 {[%clk 0:02:52]} 5. Be2 {[%clk 0:02:54]}  h6 {[%clk 0:02:52]} 6. c4 {[%clk 0:02:53]}  c6 {[%clk 0:02:52]} 7. Nc3 {[%clk 0:02:51]}  Be7 {[%clk 0:02:51]} 8. O-O {[%clk 0:02:51]}  O-O {[%clk 0:02:51]} 9. b4 {[%clk 0:02:51]}  Nbd7 {[%clk 0:02:47]} 10. Bb2 {[%clk 0:02:50]}  Ne4 {[%clk 0:02:44]} 11. Nxe4 {[%clk 0:02:46]}  Bxe4 {[%clk 0:02:45]} 12. Nd2 {[%clk 0:02:45]}  Bg6 {[%clk 0:02:45]} 13. f4 {[%clk 0:02:45]}  a5 {[%clk 0:02:43]} 14. c5 {[%clk 0:02:44]}  b6 {[%clk 0:02:37]} 15. Bc3 {[%clk 0:02:43]}  bxc5 {[%clk 0:02:25]} 16. bxc5 {[%clk 0:02:41]}  Qc7 {[%clk 0:02:21]} 17. Qa4 {[%clk 0:02:36]}  Rfb8 {[%clk 0:02:18]} 18. Qd1 {[%clk 0:02:27]}  a4 {[%clk 0:02:14]} 19. Bb4 {[%clk 0:02:25]}  f6 {[%clk 0:02:14]} 20. Bg4 {[%clk 0:02:23]}  Bf5 {[%clk 0:02:03]} 21. Bxf5 {[%clk 0:02:21]}  exf5 {[%clk 0:02:04]} 22. Qh5 {[%clk 0:02:22]}  Nf8 {[%clk 0:01:25]} 23. Qxf5 {[%clk 0:02:20]}  g6 {[%clk 0:01:24]} 24. Qh3 {[%clk 0:02:19]}  Kg7 {[%clk 0:01:23]} 25. f5 {[%clk 0:02:18]}  g5 {[%clk 0:01:23]} 26. e4 {[%clk 0:02:18]}  dxe4 {[%clk 0:01:15]} 27. Nxe4 {[%clk 0:02:19]}  Re8 {[%clk 0:01:13]} 28. Rae1 {[%clk 0:02:17]}  Qd7 {[%clk 0:01:13]} 29. Nd6 {[%clk 0:02:14]}  Bxd6 {[%clk 0:01:10]} 30. cxd6 {[%clk 0:02:15]}  Rxe1 {[%clk 0:01:07]} 31. Rxe1 {[%clk 0:02:15]}  Re8 {[%clk 0:01:07]} 32. Re7+ {[%clk 0:01:43]}  Rxe7 {[%clk 0:01:07]} 33. dxe7 {[%clk 0:01:43]}  Qxd4+ {[%clk 0:01:08]} 34. Kf1 {[%clk 0:01:44]}  Qc4+ {[%clk 0:01:05]} 35. Kf2 {[%clk 0:01:36]}  Qc2+ {[%clk 0:01:01]} 36. Ke3 {[%clk 0:01:27]}  Qb3+ {[%clk 0:00:52]} 37. Ke2 {[%clk 0:01:18]}  Qc2+ {[%clk 0:00:42]} 38. Bd2 {[%clk 0:01:15]}  Qe4+ {[%clk 0:00:27]} 39. Qe3 {[%clk 0:01:12]}  Qxg2+ {[%clk 0:00:28]} 40. Kd1 {[%clk 0:00:58]}  Qf1+ {[%clk 0:00:17]} 41. Be1 {[%clk 0:00:54]} 1-0


[Site "https://www.chess.com"]

[Event "Titled Tuesday Blitz May 23 Early 2023"]
[White "Salinas Herrera, Pablo"]
[Black "Kuzmin, Roman"]
[WhiteFideId "3407128"]
[BlackFideId "44134932"]
[WhiteElo "2546"]
[BlackElo "2122"]
[Result "1-0"]
[Round "03"]
[TimeControl "180+2"]
[Date "2023.05.23"]
[WhiteClock "0:00:06"]
[BlackClock "0:00:01"]

1. e4 {[%clk 0:03:00]}  c5 {[%clk 0:02:59]} 2. Nf3 {[%clk 0:03:00]}  d6 {[%clk 0:02:59]} 3. d4 {[%clk 0:03:00]}  cxd4 {[%clk 0:03:00]} 4. Nxd4 {[%clk 0:03:01]}  Nf6 {[%clk 0:03:01]} 5. Nc3 {[%clk 0:03:02]}  a6 {[%clk 0:03:01]} 6. Be2 {[%clk 0:03:02]}  e5 {[%clk 0:03:00]} 7. Nf3 {[%clk 0:03:02]}  Be7 {[%clk 0:03:00]} 8. Bg5 {[%clk 0:03:02]}  Nbd7 {[%clk 0:02:53]} 9. O-O {[%clk 0:02:52]}  O-O {[%clk 0:02:53]} 10. Nd2 {[%clk 0:02:47]}  b5 {[%clk 0:02:51]} 11. a4 {[%clk 0:02:37]}  b4 {[%clk 0:02:50]} 12. Bxf6 {[%clk 0:02:38]}  Nxf6 {[%clk 0:02:38]} 13. Nd5 {[%clk 0:02:38]}  Nxd5 {[%clk 0:02:38]} 14. exd5 {[%clk 0:02:39]}  f5 {[%clk 0:02:35]} 15. a5 {[%clk 0:02:38]}  Bf6 {[%clk 0:02:28]} 16. Nc4 {[%clk 0:02:38]}  e4 {[%clk 0:02:21]} 17. Ra4 {[%clk 0:02:37]}  Rb8 {[%clk 0:01:53]} 18. Qd2 {[%clk 0:02:37]}  Bg5 {[%clk 0:01:40]} 19. Qe1 {[%clk 0:01:54]}  f4 {[%clk 0:01:29]} 20. f3 {[%clk 0:01:50]}  exf3 {[%clk 0:01:24]} 21. Bxf3 {[%clk 0:01:44]}  Bf5 {[%clk 0:01:21]} 22. Qd2 {[%clk 0:01:37]}  Qc7 {[%clk 0:01:21]} 23. b3 {[%clk 0:01:28]}  Bd7 {[%clk 0:01:02]} 24. Raa1 {[%clk 0:01:24]}  Bb5 {[%clk 0:01:01]} 25. Qxb4 {[%clk 0:01:11]}  Bxc4 {[%clk 0:00:50]} 26. Qxc4 {[%clk 0:01:11]}  Qxc4 {[%clk 0:00:50]} 27. bxc4 {[%clk 0:01:12]}  Bf6 {[%clk 0:00:44]} 28. Rab1 {[%clk 0:01:03]}  Bd4+ {[%clk 0:00:44]} 29. Kh1 {[%clk 0:01:03]}  g5 {[%clk 0:00:38]} 30. Bg4 {[%clk 0:00:50]}  Kg7 {[%clk 0:00:36]} 31. Rb3 {[%clk 0:00:42]}  Rxb3 {[%clk 0:00:14]} 32. cxb3 {[%clk 0:00:43]}  Rb8 {[%clk 0:00:14]} 33. Rb1 {[%clk 0:00:26]}  Bc3 {[%clk 0:00:15]} 34. g3 {[%clk 0:00:26]}  Bxa5 {[%clk 0:00:13]} 35. gxf4 {[%clk 0:00:25]}  gxf4 {[%clk 0:00:14]} 36. Ra1 {[%clk 0:00:23]}  Bb4 {[%clk 0:00:09]} 37. Rxa6 {[%clk 0:00:23]}  Kf6 {[%clk 0:00:10]} 38. Ra7 {[%clk 0:00:21]}  Bc5 {[%clk 0:00:07]} 39. Rxh7 {[%clk 0:00:12]}  Rxb3 {[%clk 0:00:07]} 40. Kg2 {[%clk 0:00:10]}  Ke5 {[%clk 0:00:05]} 41. Re7+ {[%clk 0:00:07]}  Kd4 {[%clk 0:00:04]} 42. Be2 {[%clk 0:00:07]}  Rc3 {[%clk 0:00:02]} 43. h4 {[%clk 0:00:06]}  f3+ {[%clk 0:00:02]} 44. Bxf3 {[%clk 0:00:06]}  Kxc4 {[%clk 0:00:03]} 45. h5 {[%clk 0:00:05]}  Rc2+ {[%clk 0:00:03]} 46. Kh3 {[%clk 0:00:05]}  Rf2 {[%clk 0:00:04]} 47. Kg3 {[%clk 0:00:04]}  Rd2 {[%clk 0:00:04]} 48. h6 {[%clk 0:00:04]}  Ra2 {[%clk 0:00:02]} 49. h7 {[%clk 0:00:04]}  Ra8 {[%clk 0:00:02]} 50. Be2+ {[%clk 0:00:04]}  Kc3 {[%clk 0:00:02]} 51. Bh5 {[%clk 0:00:04]}  Bd4 {[%clk 0:00:02]} 52. Bf7 {[%clk 0:00:04]}  Bf6 {[%clk 0:00:02]} 53. Re6 {[%clk 0:00:03]}  Bh8 {[%clk 0:00:01]} 54. Kg4 {[%clk 0:00:02]}  Kd4 {[%clk 0:00:02]} 55. Bg8 {[%clk 0:00:01]}  Kc5 {[%clk 0:00:02]} 56. Kf5 {[%clk 0:00:02]}  Rf8+ {[%clk 0:00:01]} 57. Kg6 {[%clk 0:00:03]}  Rd8 {[%clk 0:00:01]} 58. Re7 {[%clk 0:00:03]}  Rb8 {[%clk 0:00:02]} 59. Kf7 {[%clk 0:00:03]}  Rc8 {[%clk 0:00:02]} 60. Ke6 {[%clk 0:00:04]}  Rd8 {[%clk 0:00:02]} 61. Rc7+ {[%clk 0:00:04]}  Kd4 {[%clk 0:00:03]} 62. Rd7 {[%clk 0:00:04]}  Rxd7 {[%clk 0:00:03]} 63. Kxd7 {[%clk 0:00:05]}  Ke5 {[%clk 0:00:03]} 64. Ke7 {[%clk 0:00:05]}  Bg7 {[%clk 0:00:02]} 65. Be6 {[%clk 0:00:05]}  Kf4 {[%clk 0:00:01]} 66. Kxd6 {[%clk 0:00:05]}  Kg5 {[%clk 0:00:01]} 67. Ke7 {[%clk 0:00:05]}  Kf4 {[%clk 0:00:01]} 68. Kf7 {[%clk 0:00:06]} 1-0


[Site "https://www.chess.com"]

[Event "Titled Tuesday Blitz May 23 Early 2023"]
[White "Fier, Alexandr"]
[Black "gueraumasague"]
[WhiteFideId "2107139"]
[WhiteElo "2610"]
[BlackElo "2531"]
[Result "1-0"]
[Round "03"]
[TimeControl "180+2"]
[Date "2023.05.23"]
[WhiteClock "0:00:28"]
[BlackClock "0:00:01"]

1. c4 {[%clk 0:03:00]}  Nf6 {[%clk 0:03:00]} 2. Nc3 {[%clk 0:03:00]}  e6 {[%clk 0:03:00]} 3. e4 {[%clk 0:02:59]}  c5 {[%clk 0:02:56]} 4. Nf3 {[%clk 0:02:50]}  Nc6 {[%clk 0:02:56]} 5. e5 {[%clk 0:02:51]}  Ng4 {[%clk 0:02:54]} 6. d4 {[%clk 0:02:44]}  cxd4 {[%clk 0:02:55]} 7. Nxd4 {[%clk 0:02:44]}  Ngxe5 {[%clk 0:02:54]} 8. Ndb5 {[%clk 0:02:44]}  d6 {[%clk 0:02:45]} 9. Bf4 {[%clk 0:02:41]}  a6 {[%clk 0:02:44]} 10. Na3 {[%clk 0:02:39]}  Be7 {[%clk 0:02:44]} 11. Be2 {[%clk 0:02:39]}  O-O {[%clk 0:02:43]} 12. O-O {[%clk 0:02:40]}  Bd7 {[%clk 0:02:32]} 13. Re1 {[%clk 0:02:39]}  Rc8 {[%clk 0:02:31]} 14. Qd2 {[%clk 0:02:38]}  Qc7 {[%clk 0:02:28]} 15. Rad1 {[%clk 0:02:38]}  Rfd8 {[%clk 0:02:27]} 16. Bf1 {[%clk 0:02:38]}  Be8 {[%clk 0:02:26]} 17. Qe3 {[%clk 0:02:35]}  Qa5 {[%clk 0:02:04]} 18. Qg3 {[%clk 0:02:33]}  Qb4 {[%clk 0:01:46]} 19. Rd2 {[%clk 0:02:29]}  Ng6 {[%clk 0:01:43]} 20. Be3 {[%clk 0:02:25]}  Nce5 {[%clk 0:01:27]} 21. Rc1 {[%clk 0:02:13]}  Bc6 {[%clk 0:01:19]} 22. Bd4 {[%clk 0:02:01]}  Bh4 {[%clk 0:01:13]} 23. Qh3 {[%clk 0:02:01]}  Bg5 {[%clk 0:01:13]} 24. Be3 {[%clk 0:02:00]}  Bxe3 {[%clk 0:01:12]} 25. Qxe3 {[%clk 0:02:00]}  Qc5 {[%clk 0:01:12]} 26. Qg3 {[%clk 0:01:57]}  Ne7 {[%clk 0:01:05]} 27. Rcd1 {[%clk 0:01:54]}  Nf5 {[%clk 0:01:05]} 28. Qh3 {[%clk 0:01:55]}  Ng6 {[%clk 0:00:59]} 29. Qg4 {[%clk 0:01:53]}  Ne5 {[%clk 0:00:59]} 30. Qh3 {[%clk 0:01:53]}  b6 {[%clk 0:00:56]} 31. Nc2 {[%clk 0:01:42]}  Nxc4 {[%clk 0:00:52]} 32. b4 {[%clk 0:01:42]}  Qe5 {[%clk 0:00:38]} 33. Bxc4 {[%clk 0:01:43]}  Bb7 {[%clk 0:00:39]} 34. Na3 {[%clk 0:01:07]}  d5 {[%clk 0:00:36]} 35. Nxd5 {[%clk 0:01:02]}  Bxd5 {[%clk 0:00:30]} 36. Bxa6 {[%clk 0:00:59]}  Rc3 {[%clk 0:00:29]} 37. Rd3 {[%clk 0:00:57]}  Rxd3 {[%clk 0:00:29]} 38. Qxd3 {[%clk 0:00:47]}  g6 {[%clk 0:00:17]} 39. Nc4 {[%clk 0:00:46]}  Qf4 {[%clk 0:00:16]} 40. Nxb6 {[%clk 0:00:43]}  Rd6 {[%clk 0:00:15]} 41. Nxd5 {[%clk 0:00:41]}  Rxd5 {[%clk 0:00:15]} 42. Qf1 {[%clk 0:00:42]}  Qxb4 {[%clk 0:00:10]} 43. Rxd5 {[%clk 0:00:40]}  exd5 {[%clk 0:00:11]} 44. g3 {[%clk 0:00:39]}  Nd4 {[%clk 0:00:11]} 45. Qd3 {[%clk 0:00:36]}  Qa4 {[%clk 0:00:10]} 46. Bb7 {[%clk 0:00:34]}  Qc4 {[%clk 0:00:06]} 47. Qxc4 {[%clk 0:00:28]}  dxc4 {[%clk 0:00:07]} 48. Kf1 {[%clk 0:00:29]}  c3 {[%clk 0:00:06]} 49. Ke1 {[%clk 0:00:29]}  Nc2+ {[%clk 0:00:05]} 50. Kd1 {[%clk 0:00:28]}  Nb4 {[%clk 0:00:06]} 51. a4 {[%clk 0:00:28]}  Nd3 {[%clk 0:00:03]} 52. a5 {[%clk 0:00:27]}  Nxf2+ {[%clk 0:00:02]} 53. Kc2 {[%clk 0:00:27]}  Ne4 {[%clk 0:00:03]} 54. a6 {[%clk 0:00:28]}  Nc5 {[%clk 0:00:01]} 55. a7 {[%clk 0:00:28]} 1-0


[Site "https://www.chess.com"]

[Event "Titled Tuesday Blitz May 23 Early 2023"]
[White "Mahdavi, Reza"]
[Black "Arat, Ufuk Sezen"]
[WhiteFideId "12595926"]
[BlackFideId "6309089"]
[WhiteElo "2352"]
[BlackElo "2289"]
[Result "1-0"]
[Round "03"]
[TimeControl "180+2"]
[Date "2023.05.23"]
[WhiteClock "0:01:54"]
[BlackClock "0:01:08"]

1. e4 {[%clk 0:03:00]}  c5 {[%clk 0:03:00]} 2. Nf3 {[%clk 0:03:00]}  e6 {[%clk 0:03:00]} 3. d4 {[%clk 0:03:00]}  cxd4 {[%clk 0:03:01]} 4. Nxd4 {[%clk 0:03:01]}  Nc6 {[%clk 0:03:02]} 5. Nc3 {[%clk 0:03:01]}  Qc7 {[%clk 0:03:02]} 6. Be3 {[%clk 0:03:01]}  a6 {[%clk 0:03:03]} 7. g4 {[%clk 0:02:38]}  b5 {[%clk 0:03:01]} 8. Nxc6 {[%clk 0:02:36]}  Qxc6 {[%clk 0:03:00]} 9. Qd2 {[%clk 0:02:36]}  Bb7 {[%clk 0:03:00]} 10. O-O-O {[%clk 0:02:28]}  h5 {[%clk 0:02:59]} 11. g5 {[%clk 0:02:25]}  Ne7 {[%clk 0:02:58]} 12. Rg1 {[%clk 0:02:19]}  d5 {[%clk 0:02:49]} 13. Bg2 {[%clk 0:02:09]}  O-O-O {[%clk 0:02:42]} 14. exd5 {[%clk 0:02:06]}  Nxd5 {[%clk 0:02:41]} 15. Nxd5 {[%clk 0:02:06]}  exd5 {[%clk 0:02:40]} 16. Bd4 {[%clk 0:02:02]}  Be7 {[%clk 0:01:59]} 17. Bxg7 {[%clk 0:01:55]}  Rhg8 {[%clk 0:01:56]} 18. Be5 {[%clk 0:01:55]}  Qe6 {[%clk 0:01:16]} 19. Qc3+ {[%clk 0:01:54]}  Kd7 {[%clk 0:01:08]} 20. Bh3 {[%clk 0:01:54]} 1-0


[Site "https://www.chess.com"]

[Event "Titled Tuesday Blitz May 23 Early 2023"]
[White "Matveeva, Olga"]
[Black "Hayrapetyan, Hovik"]
[WhiteFideId "24107018"]
[BlackFideId "13302639"]
[WhiteElo "2009"]
[BlackElo "2348"]
[Result "0-1"]
[Round "03"]
[TimeControl "180+2"]
[Date "2023.05.23"]
[WhiteClock "0:00:02"]
[BlackClock "0:00:14"]

1. d4 {[%clk 0:03:00]}  Nf6 {[%clk 0:02:58]} 2. c4 {[%clk 0:03:01]}  e6 {[%clk 0:02:55]} 3. g3 {[%clk 0:03:01]}  d5 {[%clk 0:02:55]} 4. Nf3 {[%clk 0:03:00]}  Be7 {[%clk 0:02:55]} 5. Bg2 {[%clk 0:03:00]}  O-O {[%clk 0:02:56]} 6. O-O {[%clk 0:03:00]}  dxc4 {[%clk 0:02:56]} 7. Qc2 {[%clk 0:03:00]}  a6 {[%clk 0:02:56]} 8. a4 {[%clk 0:03:01]}  Bd7 {[%clk 0:02:57]} 9. Qxc4 {[%clk 0:03:00]}  Bc6 {[%clk 0:02:56]} 10. Bf4 {[%clk 0:03:00]}  Bd6 {[%clk 0:02:56]} 11. Bg5 {[%clk 0:02:56]}  Nbd7 {[%clk 0:02:53]} 12. Nc3 {[%clk 0:02:51]}  h6 {[%clk 0:02:51]} 13. Bd2 {[%clk 0:02:31]}  a5 {[%clk 0:02:27]} 14. Rac1 {[%clk 0:02:17]}  Nb6 {[%clk 0:02:24]} 15. Qd3 {[%clk 0:02:14]}  Nxa4 {[%clk 0:02:02]} 16. Nxa4 {[%clk 0:02:08]}  Bxa4 {[%clk 0:02:03]} 17. Ra1 {[%clk 0:02:05]}  Qe8 {[%clk 0:01:48]} 18. Ne5 {[%clk 0:01:35]}  Bb5 {[%clk 0:01:39]} 19. Qe3 {[%clk 0:01:19]}  Nd5 {[%clk 0:01:34]} 20. Qf3 {[%clk 0:01:13]}  b6 {[%clk 0:00:52]} 21. Rfe1 {[%clk 0:01:11]}  c5 {[%clk 0:00:37]} 22. e4 {[%clk 0:00:56]}  Nb4 {[%clk 0:00:37]} 23. Ng4 {[%clk 0:00:51]}  f6 {[%clk 0:00:20]} 24. e5 {[%clk 0:00:33]}  fxe5 {[%clk 0:00:20]} 25. Qxa8 {[%clk 0:00:32]}  Qxa8 {[%clk 0:00:21]} 26. Bxa8 {[%clk 0:00:31]}  Rxa8 {[%clk 0:00:22]} 27. Bxb4 {[%clk 0:00:26]}  cxb4 {[%clk 0:00:23]} 28. dxe5 {[%clk 0:00:24]}  Bc5 {[%clk 0:00:23]} 29. Kg2 {[%clk 0:00:21]}  a4 {[%clk 0:00:22]} 30. f3 {[%clk 0:00:20]}  a3 {[%clk 0:00:21]} 31. bxa3 {[%clk 0:00:20]}  bxa3 {[%clk 0:00:22]} 32. Reb1 {[%clk 0:00:20]}  Bd3 {[%clk 0:00:20]} 33. Rd1 {[%clk 0:00:20]}  Bc4 {[%clk 0:00:19]} 34. Rd7 {[%clk 0:00:19]}  a2 {[%clk 0:00:16]} 35. h4 {[%clk 0:00:13]}  Bd5 {[%clk 0:00:14]} 36. h5 {[%clk 0:00:02]}  Bd4 {[%clk 0:00:14]} 0-1


[Site "https://www.chess.com"]